fUST/lending_fUST_20250615
["ID","MTS","AMOUNT","RATE_DAILY","PERIOD"]
[365797468,1749918641105,-460.0,0.00021917,4]
[365797469,1749918641115,-460.0,0.00021917,4]
[365797470,1749918641124,-460.0,0.00021917,4]
[365797471,1749918641134,-460.0,0.00021917,4]
[365797472,1749918641144,-460.0,0.00021917,4]
[365797473,1749918641155,-460.0,0.00021917,4]
[365797474,1749918641165,-430.0,0.00021917,4]
[365797475,1749918641175,-460.0,0.00021917,4]
[365797476,1749918641183,-460.0,0.00021917,4]
[365797477,1749918641193,-460.0,0.00021917,4]
[365797478,1749918641202,-460.0,0.00021917,4]
[365797479,1749918641212,-460.0,0.00021917,4]
[365797480,1749918641221,-460.0,0.00021917,4]
[365797481,1749918641230,-460.0,0.00021917,4]
[365797482,1749918641240,-430.0,0.00021917,4]
[365797483,1749918641250,-213.11543993,0.00021917,4]
[365797484,1749918641259,-435.7739596,0.00021917,4]
[365797485,1749918641269,-460.0,0.00021917,4]
[365797486,1749918641278,-460.0,0.00021917,4]
[365797487,1749918641288,-430.94103402,0.00021917,4]
[365797488,1749918641297,-460.0,0.00021917,4]
[365797489,1749918641307,-460.0,0.00021917,4]
[365797490,1749918641316,-460.0,0.00021917,4]
[365797491,1749918641325,-460.0,0.00021917,4]
[365797492,1749918641336,-460.0,0.00021917,4]
[365797493,1749918641345,-401.38330337,0.00021917,4]
[365797494,1749918641355,-460.0,0.00021917,4]
[365797495,1749918641365,-460.0,0.00021917,4]
[365797496,1749918641375,-460.0,0.00021917,4]
[365797497,1749918641384,-460.0,0.00021917,4]
[365797498,1749918641394,-460.0,0.00021917,4]
[365797499,1749918641404,-436.26076972,0.00021917,4]
[365797500,1749918641413,-460.0,0.00021917,4]
[365797501,1749918641423,-460.0,0.00021917,4]
[365797502,1749918641435,-460.0,0.00021917,4]
[365797503,1749918641444,-460.0,0.00021917,4]
[365797504,1749918641454,-460.0,0.00021917,4]
[365797505,1749918641463,-420.0,0.00021917,4]
[365797506,1749918641472,-460.0,0.00021917,4]
[365797507,1749918641482,-435.41615835,0.00021917,4]
[365797508,1749918641491,-460.0,0.00021917,4]
[365797509,1749918641500,-460.0,0.00021917,4]
[365797510,1749918641509,-328.58521431,0.00021917,4]
[365797511,1749918641519,-430.0,0.00021917,4]
[365797512,1749918641528,-432.65054917,0.00021917,4]
[365797513,1749918641538,-413.30646775,0.00021917,4]
[365797514,1749918641547,-460.0,0.00021917,4]
[365797515,1749918641556,-460.0,0.00021917,4]
[365797516,1749918641566,-460.0,0.00021917,4]
[365797517,1749918641575,-440.0,0.00021917,4]
[365797518,1749918641585,-439.08182975,0.00021917,4]
[365797519,1749918641595,-440.964079,0.00021917,4]
[365797520,1749918641605,-430.0,0.00021917,4]
[365797521,1749918641615,-460.0,0.00021917,4]
[365797522,1749918641624,-500.0,0.00021917,4]
[365797523,1749918641634,-460.0,0.00021917,4]
[365797524,1749918641645,-460.0,0.00021917,4]
[365797525,1749918641655,-460.0,0.00021917,4]
[365797526,1749918641664,-460.0,0.00021917,4]
[365797527,1749918641674,-460.0,0.00021917,4]
[365797528,1749918641683,-460.0,0.00021917,4]
[365797529,1749918641692,-444.21661399,0.00021917,4]
[365797530,1749918641702,-460.0,0.00021917,4]
[365797531,1749918641712,-276.07627861,0.00021917,4]
[365797532,1749918641721,-460.0,0.00021917,4]
[365797533,1749918641731,-460.0,0.00021917,4]
[365797534,1749918641742,-460.0,0.00021917,4]
[365797535,1749918641752,-478.84257984,0.00021917,4]
[365797536,1749918641761,-339.92019048,0.00021917,4]
[365797537,1749918641771,-460.0,0.00021917,4]
[365797538,1749918641781,-460.0,0.00021917,4]
[365797540,1749918641790,-460.0,0.00021917,4]
[365797541,1749918641799,-460.0,0.00021917,4]
[365797542,1749918641809,-460.0,0.00021917,4]
[365797543,1749918641818,-460.0,0.00021917,4]
[365797544,1749918641828,-460.0,0.00021917,4]
[365797545,1749918641838,-460.0,0.00021917,4]
[365797546,1749918641847,-460.0,0.00021917,4]
[365797547,1749918641858,-460.0,0.00021917,4]
[365797548,1749918641869,-228.92986368,0.00021917,4]
[365797549,1749918641878,-289.74675526,0.00021917,4]
[365797550,1749918641887,-460.0,0.00021917,4]
[365797551,1749918641897,-490.25386461,0.00021917,4]
[365797552,1749918641906,-460.0,0.00021917,4]
[365797553,1749918641916,-460.0,0.00021917,4]
[365797554,1749918641926,-460.0,0.00021917,4]
[365797555,1749918641936,-402.43475784,0.00021917,4]
[365797556,1749918641946,-443.32851862,0.00021917,4]
[365797557,1749918641955,-500.0,0.00021917,4]
[365797558,1749918641965,-581.85923875,0.00021917,4]
[365797559,1749918641974,-460.0,0.00021917,4]
[365797560,1749918641984,-460.0,0.00021917,4]
[365797561,1749918641994,-460.0,0.00021917,4]
[365797562,1749918642004,-460.0,0.00021917,4]
[365797563,1749918642014,-460.0,0.00021917,4]
[365797564,1749918642024,-460.0,0.00021917,4]
[365797565,1749918642035,-460.0,0.00021917,4]
[365797566,1749918642046,-460.0,0.00021917,4]
[365797567,1749918642056,-460.0,0.00021917,4]
[365797568,1749918642066,-460.0,0.00021917,4]
[365797569,1749918642080,-430.0,0.00021917,4]
[365797570,1749918642091,-460.0,0.00021917,4]
[365797571,1749918642101,-430.0,0.00021917,4]
[365797572,1749918642111,-440.0,0.00021917,4]
[365797573,1749918642121,-460.0,0.00021917,4]
[365797574,1749918642131,-460.0,0.00021917,4]
[365797575,1749918642140,-432.29216292,0.00021917,4]
[365797576,1749918642150,-432.77074467,0.00021917,4]
[365797577,1749918642160,-460.0,0.00021917,4]
[365797578,1749918642171,-460.0,0.00021917,4]
[365797579,1749918642181,-460.0,0.00021917,4]
[365797580,1749918642190,-460.0,0.00021917,4]
[365797581,1749918642200,-460.0,0.00021917,4]
[365797582,1749918642209,-502.36254079,0.00021917,4]
[365797583,1749918642220,-427.50915335,0.00021917,4]
[365797584,1749918642230,-460.0,0.00021917,4]
[365797585,1749918642240,-460.0,0.00021917,4]
[365797586,1749918642249,-460.0,0.00021917,4]
[365797587,1749918642259,-460.0,0.00021917,4]
[365797588,1749918642269,-460.0,0.00021917,4]
[365797589,1749918642278,-447.98450297,0.00021917,4]
[365797590,1749918642287,-460.0,0.00021917,4]
[365797591,1749918642297,-460.0,0.00021917,4]
[365797592,1749918642308,-460.0,0.00021917,4]
[365797593,1749918642317,-440.0,0.00021917,4]
[365797594,1749918642326,-460.0,0.00021917,4]
[365797595,1749918642336,-460.0,0.00021917,4]
[365797596,1749918642346,-440.0,0.00021917,4]
[365797597,1749918642356,-460.0,0.00021917,4]
[365797598,1749918642366,-460.0,0.00021917,4]
[365797599,1749918642375,-460.0,0.00021917,4]
[365797600,1749918642385,-511.93017923,0.00021917,4]
[365797601,1749918642395,-460.0,0.00021917,4]
[365797602,1749918642404,-460.0,0.00021917,4]
[365797603,1749918642414,-460.0,0.00021917,4]
[365797604,1749918642423,-524.71323358,0.00021917,4]
[365797605,1749918642433,-430.0,0.00021917,4]
[365797606,1749918642442,-444.00667807,0.00021917,4]
[365797607,1749918642452,-460.0,0.00021917,4]
[365797608,1749918642461,-460.0,0.00021917,4]
[365797609,1749918642470,-384.91384267,0.00021917,4]
[365797610,1749918642480,-440.0,0.00021917,4]
[365797611,1749918642489,-382.8658775,0.00021917,4]
[365797612,1749918642499,-440.86051761,0.00021917,4]
[365797613,1749918642509,-460.0,0.00021917,4]
[365797614,1749918642519,-444.02518276,0.00021917,4]
[365797615,1749918642528,-460.0,0.00021917,4]
[365797616,1749918642540,-446.95560544,0.00021917,4]
[365797617,1749918642550,-460.0,0.00021917,4]
[365797618,1749918642559,-460.0,0.00021917,4]
[365797619,1749918642569,-460.0,0.00021917,4]
[365797620,1749918642579,-420.0,0.00021917,4]
[365797621,1749918642589,-430.23911861,0.00021917,4]
[365797622,1749918642598,-460.0,0.00021917,4]
[365797623,1749918642608,-460.0,0.00021917,4]
[365797624,1749918642617,-426.67598338,0.00021917,4]
[365797625,1749918642627,-430.40898799,0.00021917,4]
[365797626,1749918642637,-460.0,0.00021917,4]
[365797627,1749918642647,-460.0,0.00021917,4]
[365797628,1749918642657,-460.0,0.00021917,4]
[365797629,1749918642667,-460.0,0.00021917,4]
[365797630,1749918642677,-649.06,0.00021917,4]
[365797631,1749918642688,-157.5064907,0.00021917,4]
[365797632,1749918642697,-460.0,0.00021917,4]
[365797633,1749918642706,-401.640083,0.00021917,4]
[365797634,1749918642715,-322.92389835,0.00021917,4]
[365797635,1749918642724,-192.05184211,0.00021917,4]
[365797636,1749918642733,-460.0,0.00021917,4]
[365797637,1749918642742,-460.0,0.00021917,4]
[365797638,1749918642751,-438.01766789,0.00021917,4]
[365797639,1749918642760,-460.0,0.00021917,4]
[365797640,1749918642770,-460.0,0.00021917,4]
[365797641,1749918642779,-389.36437566,0.00021917,4]
[365797642,1749918642789,-460.0,0.00021917,4]
[365797643,1749918642799,-460.0,0.00021917,4]
[365797644,1749918642808,-460.0,0.00021917,4]
[365797645,1749918642819,-460.0,0.00021917,4]
[365797646,1749918642828,-460.0,0.00021917,4]
[365797647,1749918642837,-460.0,0.00021917,4]
[365797648,1749918642846,-540.95447417,0.00021917,4]
[365797649,1749918642855,-460.0,0.00021917,4]
[365797650,1749918642865,-460.0,0.00021917,4]
[365797651,1749918642874,-618.86,0.00021917,4]
[365797652,1749918642883,-460.0,0.00021917,4]
[365797653,1749918642893,-430.0,0.00021917,4]
[365797654,1749918642903,-460.0,0.00021917,4]
[365797655,1749918642912,-200.0,0.00021917,4]
[365797656,1749918642922,-460.0,0.00021917,4]
[365797658,1749918642932,-460.0,0.00021917,4]
[365797660,1749918642942,-226.53535668,0.00021917,4]
[365797662,1749918642952,-460.0,0.00021917,4]
[365797664,1749918642962,-460.0,0.00021917,4]
[365797665,1749918642971,-460.0,0.00021917,4]
[365797666,1749918642981,-500.0,0.00021917,4]
[365797667,1749918642990,-460.0,0.00021917,4]
[365797668,1749918642999,-460.0,0.00021917,4]
[365797669,1749918643010,-460.0,0.00021917,4]
[365797671,1749918643020,-178.58655484,0.00021917,4]
[365797672,1749918643030,-460.0,0.00021917,4]
[365797673,1749918643039,-460.0,0.00021917,4]
[365797674,1749918643049,-460.0,0.00021917,4]
[365797675,1749918643058,-460.0,0.00021917,4]
[365797676,1749918643068,-460.0,0.00021917,4]
[365797677,1749918643082,-660.44,0.00021917,4]
[365797678,1749918643091,-460.0,0.00021917,4]
[365797679,1749918643100,-460.0,0.00021917,4]
[365797680,1749918643110,-460.0,0.00021917,4]
[365797682,1749918643120,-460.0,0.00021917,4]
[365797684,1749918643130,-1287.37,0.00021917,4]
[365797685,1749918643140,-460.0,0.00021917,4]
[365797686,1749918643150,-319.922574,0.00021917,4]
[365797688,1749918643159,-430.0,0.00021917,4]
[365797689,1749918643169,-460.0,0.00021917,4]
[365797691,1749918643179,-460.0,0.00021917,4]
[365797692,1749918643189,-460.0,0.00021917,4]
[365797693,1749918643199,-460.0,0.00021917,4]
[365797694,1749918643208,-460.0,0.00021917,4]
[365797695,1749918643218,-704.78,0.00021917,4]
[365797696,1749918643227,-413.79721582,0.00021917,4]
[365797697,1749918643237,-460.0,0.00021917,4]
[365797698,1749918643246,-460.0,0.00021917,4]
[365797699,1749918643255,-460.0,0.00021917,4]
[365797700,1749918643264,-460.0,0.00021917,4]
[365797701,1749918643274,-528.30378963,0.00021917,4]
[365797702,1749918643283,-460.0,0.00021917,4]
[365797703,1749918643293,-460.0,0.00021917,4]
[365797704,1749918643302,-460.0,0.00021917,4]
[365797705,1749918643312,-270.0,0.00021917,4]
[365797706,1749918643322,-350.58208313,0.00021917,4]
[365797707,1749918643331,-460.0,0.00021917,4]
[365797708,1749918643340,-460.0,0.00021917,4]
[365797709,1749918643350,-460.0,0.00021917,4]
[365797710,1749918643359,-460.0,0.00021917,4]
[365797711,1749918643368,-460.0,0.00021917,4]
[365797712,1749918643377,-460.0,0.00021917,4]
[365797713,1749918643387,-460.0,0.00021917,4]
[365797714,1749918643397,-460.0,0.00021917,4]
[365797715,1749918643406,-460.0,0.00021917,4]
[365797716,1749918643415,-460.0,0.00021917,4]
[365797717,1749918643424,-460.0,0.00021917,4]
[365797718,1749918643434,-460.0,0.00021917,4]
[365797719,1749918643444,-214.01595344,0.00021917,4]
[365797720,1749918643454,-460.0,0.00021917,4]
[365797721,1749918643463,-460.0,0.00021917,4]
[365797722,1749918643472,-460.0,0.00021917,4]
[365797723,1749918643482,-398.87073197,0.00021917,4]
[365797724,1749918643491,-521.1289143,0.00021917,4]
[365797725,1749918643501,-460.0,0.00021917,4]
[365797726,1749918643510,-2338.37,0.00021917,4]
[365797727,1749918643519,-460.0,0.00021917,4]
[365797729,1749918643527,-460.0,0.00021917,4]
[365797730,1749918643537,-460.0,0.00021917,4]
[365797732,1749918643546,-291.67410705,0.00021917,4]
[365797734,1749918643555,-460.0,0.00021917,4]
[365797736,1749918643564,-432.29371893,0.00021917,4]
[365797738,1749918643574,-460.0,0.00021917,4]
[365797739,1749918643583,-460.0,0.00021917,4]
[365797740,1749918643593,-232.49311707,0.00021917,4]
[365797741,1749918643602,-574.16132379,0.00021917,4]
[365797742,1749918643612,-434.43049342,0.00021917,4]
[365797743,1749918643621,-469.95,0.00021917,4]
[365797744,1749918643631,-430.0,0.00021917,4]
[365797745,1749918643640,-460.0,0.00021917,4]
[365797746,1749918643649,-460.0,0.00021917,4]
[365797748,1749918643658,-430.0,0.00021917,4]
[365797750,1749918643668,-460.0,0.00021917,4]
[365797751,1749918643677,-430.0,0.00021917,4]
[365797752,1749918643687,-460.0,0.00021917,4]
[365797753,1749918643697,-460.0,0.00021917,4]
[365797754,1749918643706,-460.0,0.00021917,4]
[365797755,1749918643715,-390.0,0.00021917,4]
[365797756,1749918643724,-460.0,0.00021917,4]
[365797757,1749918643733,-460.0,0.00021917,4]
[365797758,1749918643742,-460.0,0.00021917,4]
[365797759,1749918643751,-473.36,0.00021917,4]
[365797760,1749918643760,-460.0,0.00021917,4]
[365797761,1749918643769,-1132.03,0.00021917,4]
[365797762,1749918643779,-460.0,0.00021917,4]
[365797763,1749918643788,-1906.72,0.00021917,4]
[365797764,1749918643797,-1265.16,0.00021917,4]
[365797765,1749918643807,-460.0,0.00021917,4]
[365797766,1749918643816,-436.72252352,0.00021917,4]
[365797767,1749918643826,-460.0,0.00021917,4]
[365797768,1749918643835,-460.0,0.00021917,4]
[365797769,1749918643844,-460.0,0.00021917,4]
[365797770,1749918643854,-460.0,0.00021917,4]
[365797771,1749918643863,-460.0,0.00021917,4]
[365797772,1749918643872,-460.0,0.00021917,4]
[365797773,1749918643882,-460.0,0.00021917,4]
[365797774,1749918643891,-548.96,0.00021917,2]
[365797775,1749918643900,-460.0,0.00021917,4]
[365797776,1749918643910,-460.0,0.00021917,4]
[365797777,1749918643919,-460.0,0.00021917,4]
[365797778,1749918643928,-460.0,0.00021917,4]
[365797779,1749918643937,-281.63550722,0.00021917,4]
[365797780,1749918643947,-460.0,0.00021917,4]
[365797781,1749918643956,-250.48194179,0.00021917,4]
[365797782,1749918643966,-1865.2,0.00021917,4]
[365797783,1749918643976,-460.0,0.00021917,4]
[365797784,1749918643986,-460.0,0.00021917,4]
[365797785,1749918643995,-460.0,0.00021917,4]
[365797786,1749918644005,-460.0,0.00021917,4]
[365797787,1749918644015,-505.84164683,0.00021917,4]
[365797788,1749918644024,-460.0,0.00021917,4]
[365797789,1749918644033,-460.0,0.00021917,4]
[365797790,1749918644043,-460.0,0.00021917,4]
[365797791,1749918644053,-529.36316137,0.00021917,4]
[365797792,1749918644063,-2333.52,0.00021917,4]
[365797793,1749918644072,-460.0,0.00021917,4]
[365797794,1749918644083,-460.0,0.00021917,4]
[365797795,1749918644092,-460.0,0.00021917,4]
[365797796,1749918644230,-460.0,0.00021917,4]
[365797797,1749918644240,-460.0,0.00021917,4]
[365797798,1749918644250,-460.0,0.00021917,4]
[365797799,1749918644261,-460.0,0.00021917,4]
[365797800,1749918644270,-672.1,0.00021917,4]
[365797801,1749918644282,-460.0,0.00021917,4]
[365797802,1749918644291,-460.0,0.00021917,4]
[365797803,1749918644301,-1078.38,0.00021917,4]
[365797804,1749918644310,-500.0,0.00021917,4]
[365797805,1749918644321,-2512.71,0.00021917,4]
[365797806,1749918644332,-460.0,0.00021917,4]
[365797807,1749918644343,-460.0,0.00021917,4]
[365797808,1749918644354,-460.0,0.00021917,4]
[365797809,1749918644363,-460.0,0.00021917,4]
[365797810,1749918644374,-460.0,0.00021917,4]
[365797811,1749918644384,-460.0,0.00021917,4]
[365797812,1749918644393,-460.0,0.00021917,4]
[365797813,1749918644403,-460.0,0.00021917,4]
[365797814,1749918644412,-506.61,0.00021917,4]
[365797815,1749918644421,-460.0,0.00021917,4]
[365797816,1749918644430,-460.0,0.00021917,4]
[365797817,1749918644439,-460.0,0.00021917,4]
[365797818,1749918644448,-271.46909793,0.00021917,4]
[365797819,1749918644458,-460.0,0.00021917,4]
[365797820,1749918644467,-938.4,0.00021917,4]
[365797821,1749918644476,-460.0,0.00021917,4]
[365797822,1749918644486,-460.0,0.00021917,4]
[365797823,1749918644495,-1085.13,0.00021917,4]
[365797824,1749918644504,-460.0,0.00021917,4]
[365797825,1749918644513,-460.0,0.00021917,4]
[365797826,1749918644523,-311.47251944,0.00021917,4]
[365797827,1749918644532,-460.0,0.00021917,4]
[365797828,1749918644540,-460.0,0.00021917,4]
[365797829,1749918644550,-460.0,0.00021917,4]
[365797830,1749918644559,-460.0,0.00021917,4]
[365797831,1749918644569,-460.0,0.00021917,4]
[365797832,1749918644578,-1252.19,0.00021917,4]
[365797833,1749918644587,-403.25999873,0.00021917,4]
[365797834,1749918644596,-460.0,0.00021917,4]
[365797835,1749918644606,-430.0,0.00021917,4]
[365797836,1749918644615,-460.0,0.00021917,4]
[365797837,1749918644624,-460.0,0.00021917,4]
[365797838,1749918644633,-432.2598092,0.00021917,4]
[365797839,1749918644642,-460.0,0.00021917,4]
[365797840,1749918644651,-301.60213888,0.00021917,4]
[365797841,1749918644661,-366.43399899,0.00021917,4]
[365797842,1749918644670,-460.0,0.00021917,4]
[365797843,1749918644679,-1815.67,0.00021917,4]
[365797844,1749918644688,-2383.36,0.00021917,4]
[365797845,1749918644698,-460.0,0.00021917,4]
[365797846,1749918644707,-430.0,0.00021917,4]
[365797847,1749918644716,-460.0,0.00021917,4]
[365797848,1749918644725,-460.0,0.00021917,4]
[365797849,1749918644734,-460.0,0.00021917,4]
[365797850,1749918644743,-460.0,0.00021917,4]
[365797851,1749918644752,-430.0,0.00021917,4]
[365797852,1749918644761,-460.0,0.00021917,4]
[365797853,1749918644772,-436.8,0.00021917,4]
[365797854,1749918644782,-460.0,0.00021917,4]
[365797855,1749918644792,-227.70327136,0.00021917,4]
[365797856,1749918644801,-460.0,0.00021917,4]
[365797857,1749918644810,-460.0,0.00021917,4]
[365797858,1749918644820,-460.0,0.00021917,4]
[365797859,1749918644829,-430.0,0.00021917,4]
[365797860,1749918644838,-330.0,0.00021917,4]
[365797861,1749918644847,-403.67696952,0.00021917,4]
[365797862,1749918644857,-500.0,0.00021973,2]
[365797863,1749918644866,-444.37865843,0.00021973,2]
[365797864,1749918644875,-500.0,0.00021973,2]
[365797865,1749918644884,-500.0,0.00021973,2]
[365797866,1749918644895,-500.0,0.00021973,2]
[365797867,1749918644904,-500.0,0.00021973,2]
[365797868,1749918644914,-500.38178413,0.00021973,2]
[365797869,1749918644924,-502.45172187,0.00021973,2]
[365797870,1749918644933,-500.0,0.00021973,2]
[365797871,1749918644942,-317.90403577,0.00021973,2]
[365797872,1749918644951,-500.0,0.00021973,2]
[365797873,1749918644961,-500.0,0.00021973,2]
[365797874,1749918644971,-300.0,0.00021975,2]
[365797875,1749918644981,-100000.0,0.0002199,2]
[365797876,1749918644991,-2000.0,0.00022,2]
[365797877,1749918645001,-855.19043624,0.00022003,6]
[365797878,1749918645011,-250.0,0.0002201,2]
[365797879,1749918645020,-405.25378305,0.000221,2]
[365797880,1749918645031,-855.19043624,0.00022107,6]
[365797881,1749918645041,-168.0,0.00022123,2]
[365797882,1749918645050,-507.66297015,0.00022173,2]
[365797883,1749918645060,-500.0,0.00022173,2]
[365797884,1749918645070,-500.0,0.00022173,2]
[365797885,1749918645082,-500.0,0.00022173,2]
[365797886,1749918645092,-500.0,0.00022173,2]
[365797887,1749918645101,-500.0,0.00022173,2]
[365797888,1749918645111,-500.0,0.00022173,2]
[365797889,1749918645123,-500.0,0.00022173,2]
[365797890,1749918645132,-500.0,0.00022173,2]
[365797891,1749918645142,-500.0,0.00022173,2]
[365797892,1749918645153,-502.41740394,0.00022173,2]
[365797893,1749918645163,-5901.84,0.0002219,2]
[365797894,1749918645173,-5901.84,0.0002219,2]
[365797895,1749918645182,-5901.84,0.0002219,2]
[365797896,1749918645192,-5901.84,0.0002219,2]
[365797897,1749918645202,-5901.84,0.0002219,2]
[365797898,1749918645211,-5901.84,0.0002219,2]
[365797899,1749918645220,-5901.84,0.0002219,2]
[365797900,1749918645229,-5901.85,0.0002219,2]
[365797901,1749918645239,-300.0,0.00022191,4]
[365797902,1749918645249,-460.0,0.00022191,4]
[365797903,1749918645258,-460.0,0.00022191,4]
[365797904,1749918645267,-400.0,0.00022191,4]
[365797905,1749918645277,-540.0,0.00022191,4]
[365797906,1749918645286,-400.09493162,0.00022191,4]
[365797907,1749918645296,-325.92763111,0.00022191,4]
[365797908,1749918645305,-460.0,0.00022191,4]
[365797909,1749918645315,-460.0,0.00022191,4]
[365797910,1749918645324,-460.0,0.00022191,4]
[365797911,1749918645334,-460.0,0.00022191,4]
[365797912,1749918645343,-442.79762912,0.00022191,4]
[365797913,1749918645354,-380.0,0.00022191,4]
[365797914,1749918645363,-328.02068412,0.00022191,4]
[365797915,1749918645373,-420.0,0.00022191,4]
[365797916,1749918645383,-460.0,0.00022191,4]
[365797917,1749918645393,-460.0,0.00022191,4]
[365797918,1749918645403,-460.0,0.00022191,4]
[365797919,1749918645413,-510.0,0.00022191,4]
[365797920,1749918645423,-400.0,0.00022191,4]
[365797921,1749918645433,-444.30198561,0.00022191,4]
[365797922,1749918645443,-460.0,0.00022191,4]
[365797923,1749918645453,-460.0,0.00022191,4]
[365797924,1749918645464,-460.0,0.00022191,4]
[365797925,1749918645474,-460.0,0.00022191,4]
[365797926,1749918645483,-370.0,0.00022191,4]
[365797927,1749918645493,-460.0,0.00022191,4]
[365797928,1749918645503,-460.0,0.00022191,4]
[365797929,1749918645513,-460.0,0.00022191,4]
[365797930,1749918645523,-460.0,0.00022191,4]
[365797931,1749918645532,-460.0,0.00022191,4]
[365797932,1749918645541,-402.01289897,0.00022191,4]
[365797933,1749918645550,-530.4,0.00022191,4]
[365797934,1749918645560,-460.0,0.00022191,4]
[365797935,1749918645569,-460.0,0.00022191,4]
[365797936,1749918645578,-322.98139453,0.00022191,4]
[365797937,1749918645587,-460.0,0.00022191,4]
[365797938,1749918645598,-403.55744076,0.00022191,4]
[365797939,1749918645607,-406.47733634,0.00022191,4]
[365797940,1749918645617,-360.0,0.00022191,4]
[365797941,1749918645627,-460.0,0.00022191,4]
[365797942,1749918645636,-580.0,0.00022191,4]
[365797943,1749918645645,-460.0,0.00022191,4]
[365797944,1749918645655,-412.83622971,0.00022191,4]
[365797945,1749918645665,-460.0,0.00022191,4]
[365797946,1749918645675,-582.24190177,0.00022191,4]
[365797947,1749918645684,-460.0,0.00022191,4]
[365797948,1749918645694,-460.0,0.00022191,4]
[365797949,1749918645703,-460.0,0.00022191,4]
[365797950,1749918645712,-329.44195837,0.00022191,4]
[365797951,1749918645722,-460.0,0.00022191,4]
[365797952,1749918645731,-280.0,0.00022191,4]
[365797953,1749918645741,-460.0,0.00022191,4]
[365797954,1749918645751,-460.0,0.00022191,4]
[365797955,1749918645761,-460.0,0.00022191,4]
[365797956,1749918645771,-460.0,0.00022191,4]
[365797957,1749918645780,-460.0,0.00022191,4]
[365797958,1749918645790,-460.0,0.00022191,4]
[365797959,1749918645799,-460.0,0.00022191,4]
[365797960,1749918645808,-340.0,0.00022191,4]
[365797961,1749918645818,-411.53918888,0.00022191,4]
[365797962,1749918645827,-460.0,0.00022191,4]
[365797963,1749918645837,-460.0,0.00022191,4]
[365797964,1749918645846,-460.0,0.00022191,4]
[365797965,1749918645855,-460.0,0.00022191,4]
[365797966,1749918645865,-320.0,0.00022191,4]
[365797967,1749918645874,-460.0,0.00022191,4]
[365797968,1749918645884,-290.0,0.00022191,4]
[365797969,1749918645893,-460.0,0.00022191,4]
[365797970,1749918645903,-380.0,0.00022191,4]
[365797971,1749918645914,-405.91417754,0.00022191,4]
[365797972,1749918645923,-460.0,0.00022191,4]
[365797973,1749918645933,-460.0,0.00022191,4]
[365797974,1749918645943,-460.0,0.00022191,4]
[365797975,1749918645953,-310.0,0.00022191,4]
[365797977,1749918645962,-460.0,0.00022191,4]
[365797979,1749918645972,-460.0,0.00022191,4]
[365797980,1749918645982,-460.0,0.00022191,4]
[365797981,1749918645992,-581.46090903,0.00022191,4]
[365797982,1749918646001,-460.0,0.00022191,4]
[365797983,1749918646011,-430.0,0.00022191,4]
[365797985,1749918646020,-460.0,0.00022191,4]
[365797986,1749918646030,-460.0,0.00022191,4]
[365797987,1749918646039,-460.0,0.00022191,4]